fUSD/lending_fUSD_20250302
["ID","MTS","AMOUNT","RATE_DAILY","PERIOD"]
[355056058,1740883843543,-500.0,0.00025479,2]
[355056060,1740883843558,-564.35218491,0.00025479,2]
[355056063,1740883843573,-443.7867996,0.00025479,2]
[355056065,1740883843588,-500.0,0.00025479,2]
[355056068,1740883843602,-500.0,0.00025479,2]
[355056071,1740883843619,-500.0,0.00025479,2]
[355056073,1740883843633,-500.0,0.00025479,2]
[355056075,1740883843643,-500.0,0.00025479,2]
[355056077,1740883843652,-500.0,0.00025479,2]
[355056079,1740883843662,-500.0,0.00025479,2]
[355056081,1740883843672,-500.0,0.00025479,2]
[355056083,1740883843682,-500.0,0.00025479,2]
[355056085,1740883843692,-500.0,0.00025479,2]
[355056088,1740883843702,-1755.05,0.00025479,2]
[355056090,1740883843712,-780.24,0.00025479,2]
[355056115,1740883843948,-500.0,0.00025479,2]
[355056119,1740883843976,-500.0,0.00025479,2]
[355056121,1740883843988,-500.0,0.00025479,2]
[355056123,1740883843997,-500.0,0.00025479,2]
[355056126,1740883844011,-500.0,0.00025479,2]
[355056128,1740883844020,-500.0,0.00025479,2]
[355056130,1740883844030,-500.0,0.00025479,2]
[355056132,1740883844040,-284.42638977,0.00025479,2]
[355056134,1740883844049,-500.0,0.00025479,2]
[355056136,1740883844060,-500.0,0.00025479,2]
[355056138,1740883844069,-277.04308305,0.00025479,2]
[355056158,1740883844255,-222.95691695,0.00025479,2]
[355056160,1740883844264,-352.1476657,0.00025479,2]
[355056162,1740883844276,-147.8523343,0.00025479,2]
[355056164,1740883844285,-383.2012627,0.00025479,2]
[355056167,1740883844298,-116.7987373,0.00025479,2]
[355056169,1740883844307,-500.0,0.00025479,2]
[355056171,1740883844317,-500.0,0.00025479,2]
[355056173,1740883844327,-642.19,0.00025479,2]
[355056175,1740883844336,-500.0,0.00025479,2]
[355056177,1740883844345,-500.0,0.00025479,2]
[355056179,1740883844355,-500.0,0.00025479,2]
[355056180,1740883844364,-547.959825,0.00025479,2]
[355056182,1740883844373,-500.0,0.00025479,2]
[355056184,1740883844383,-624.67136144,0.00025479,2]
[355056187,1740883844394,-1291.05863856,0.00025479,2]
[355056189,1740883844404,-1449.41,0.00025479,2]
[355056191,1740883844413,-1627.488911,0.00025479,2]
[355056193,1740883844422,-263.93666139,0.00025479,2]
[355056195,1740883844434,-236.06333861,0.00025479,2]
[355056197,1740883844443,-143.57411136,0.00025479,2]
[355056199,1740883844455,-322.26793109,0.00025479,2]
[355056202,1740883844475,-34.15795755,0.00025479,2]
[355056204,1740883844484,-500.0,0.00025479,2]
[355056206,1740883844494,-654.31,0.00025479,2]
[355056209,1740883844505,-500.0,0.00025479,2]
[355056210,1740883844515,-344.93156945,0.00025479,2]
[355056214,1740883844533,-296.06898983,0.00024931,2]
[355056216,1740883844547,-203.93101017,0.00024931,2]
[355056218,1740883844557,-155.06843055,0.00025479,2]
[355056220,1740883844566,-500.0,0.00025479,2]
[355056222,1740883844576,-500.0,0.00025479,2]
[355056224,1740883844596,-500.0,0.00025479,2]
[355056226,1740883844606,-500.0,0.00025479,2]
[355056228,1740883844616,-1048.72,0.00025479,2]
[355056230,1740883844625,-500.0,0.00025479,2]
[355056232,1740883844634,-732.04,0.00025479,2]
[355056234,1740883844643,-500.0,0.00025479,2]
[355056236,1740883844652,-500.0,0.00025479,2]
[355056238,1740883844662,-500.0,0.00025479,2]
[355056240,1740883844671,-500.0,0.00025479,2]
[355056242,1740883844681,-500.0,0.00025479,2]
[355056244,1740883844690,-500.0,0.00025479,2]
[355056246,1740883844700,-500.0,0.00025479,2]
[355056248,1740883844709,-2199.55,0.00025479,2]
[355056250,1740883844719,-500.0,0.00025479,2]
[355056252,1740883844729,-500.0,0.00025479,2]
[355056254,1740883844739,-1289.23,0.00025479,2]
[355056256,1740883844749,-500.0,0.00025479,2]
[355056258,1740883844758,-500.0,0.00025479,2]
[355056260,1740883844768,-500.0,0.00025479,2]
[355056262,1740883844777,-1747.14,0.00025479,2]
[355056264,1740883844787,-1838.6,0.00025479,2]
[355056266,1740883844798,-582.5,0.00025479,2]
[355056268,1740883844807,-500.0,0.00025479,2]
[355056270,1740883844816,-500.0,0.00025479,2]
[355056272,1740883844826,-2001.15,0.00025479,2]
[355056274,1740883844835,-579.4,0.00025479,2]
[355056276,1740883844844,-588.89428325,0.00025479,2]
[355056278,1740883844857,-104.07571675,0.00025479,2]
[355056280,1740883844866,-2655.82,0.00025479,2]
[355056282,1740883844875,-2416.93,0.00025479,2]
[355056284,1740883844885,-500.0,0.00025479,2]
[355056286,1740883844894,-612.24428325,0.00025479,2]
[355056288,1740883844906,-145.41571675,0.00025479,2]
[355056290,1740883844915,-2394.94,0.00025479,2]
[355056292,1740883844925,-531.34928325,0.00025479,2]
[355056328,1740883845254,-300.32,0.000239,3]
[355056330,1740883845266,-315.3992882,0.000239,3]
[355056332,1740883845275,-615.71928814,0.0002421,3]
[355056334,1740883845284,-43.04349809,0.00024521,3]
[355056336,1740883845295,-572.67579005,0.00024521,3]
[355056339,1740883845305,-472.96349316,0.00024831,4]
[355056341,1740883845321,-142.75579498,0.00024831,4]
[355056343,1740883845331,-615.71928814,0.00025141,4]
[355056345,1740883845340,-500.0,0.00025205,2]
[355056347,1740883845349,-41.07883355,0.00025452,4]
[355056350,1740883845362,-574.64045459,0.00025452,4]
[355056351,1740883845372,-1450.43071675,0.00025479,2]
[355056353,1740883845381,-1363.72393174,0.00025479,2]
[355056356,1740883845392,-472.93606826,0.00025479,2]
[355056358,1740883845401,-30.07566607,0.00025479,2]
[355056360,1740883845413,-469.92433393,0.00025479,2]
[355056362,1740883845422,-828.85,0.00025479,2]
[355056364,1740883845432,-151.0,0.00025479,7]
[355056366,1740883845442,-500.0,0.00025479,2]
[355056368,1740883845451,-1628.46739922,0.00025479,2]
[355056392,1740883845666,-500.1213125,0.00025479,2]
[355056394,1740883845678,-250.21128828,0.00025479,2]
[355056396,1740883845688,-500.0,0.00025479,2]
[355056398,1740883845698,-974.39,0.00025479,2]
[355056400,1740883845708,-500.0,0.00025479,2]
[355056402,1740883845717,-500.0,0.00025479,2]
[355056404,1740883845728,-500.0,0.00025479,2]
[355056406,1740883845737,-500.0,0.00025479,2]
[355056408,1740883845747,-500.0,0.00025479,2]
[355056410,1740883845758,-500.0,0.00025479,2]
[355056412,1740883845767,-602.86,0.00025479,2]
[355056414,1740883845777,-2100.87,0.00025479,2]
[355056416,1740883845788,-1266.67,0.00025479,2]
[355056419,1740883845798,-1574.18,0.00025479,2]
[355056421,1740883845807,-1518.41,0.00025479,2]
[355056424,1740883845818,-500.0,0.00025479,2]
[355056427,1740883845828,-592.54787673,0.00025479,2]
[355056430,1740883845838,-500.0,0.00025479,2]
[355056433,1740883845847,-563.7,0.00025479,2]
[355056436,1740883845857,-909.95,0.00025479,2]
[355056439,1740883845867,-856.54,0.00025479,2]
[355056442,1740883845876,-500.0,0.00025479,2]
[355056444,1740883845886,-187.98404329,0.00025479,2]
[355056446,1740883845896,-500.0,0.00025479,2]
[355056448,1740883845906,-406.3559767,0.00025506,4]
[355056450,1740883845916,-429.08417607,0.00025514,2]
[355056452,1740883845925,-222.69,0.00025529,2]
[355056454,1740883845935,-152.0,0.00025599,5]
[355056456,1740883845944,-179.62203072,0.00025648,2]
[355056458,1740883845954,-176.19223419,0.00025651,2]
[355056460,1740883845964,-167.82363171,0.00025653,2]
[355056462,1740883845973,-429.08417607,0.00025653,2]
[355056464,1740883845983,-222.69,0.00025661,2]
[355056466,1740883845993,-2788.03123886,0.00025748,4]
[355056468,1740883846002,-300209.56930533,0.00025748,4]
[355056474,1740883846044,-40176.79191419,0.00025748,4]
[355056476,1740883846055,-425877.91111534,0.00025748,4]
[355056495,1740883846228,-278.69859955,0.00025748,4]
[355056497,1740883846240,-339.59431143,0.00025748,4]
[355056629,1740883847563,-1062.06714211,0.00025748,4]
[355056657,1740883847839,-500.0,0.00024657,2]
[355056659,1740883847849,-11.65658671,0.00024931,2]
[355056661,1740883847861,-488.34341329,0.00024931,2]
[355056663,1740883847871,-500.0,0.00025205,2]
[355056665,1740883847880,-181.51813573,0.00025479,2]
[355056667,1740883847890,-206.13845098,0.00025748,4]
[355056669,1740883847901,-263.97986803,0.00025748,4]
[355056671,1740883847912,-613.94999991,0.00025748,4]
[355056673,1740883847924,-10962.97195185,0.00025748,4]
[355056675,1740883847933,-500.0,0.00025748,2]
[355056676,1740883847943,-500.0,0.00025748,2]
[355056678,1740883847952,-500.0,0.00025748,2]
[355056680,1740883847962,-500.0,0.00025748,2]
[355056682,1740883847972,-500.0,0.00025748,2]
[355056684,1740883847982,-500.0,0.00025748,2]
[355056686,1740883847991,-1335.75,0.00025748,2]
[355056688,1740883848001,-500.0,0.00025748,2]
[355056690,1740883848012,-1911.89,0.00025748,2]
[355056692,1740883848023,-500.0,0.00025748,2]
[355056694,1740883848033,-500.0,0.00025748,2]
[355056696,1740883848043,-500.0,0.00025748,2]
[355056698,1740883848052,-500.0,0.00025748,2]
[355056700,1740883848062,-500.0,0.00025748,2]
[355056702,1740883848071,-500.0,0.00025748,2]
[355056704,1740883848081,-500.0,0.00025748,2]
[355056705,1740883848090,-500.0,0.00025748,2]
[355056707,1740883848099,-500.0,0.00025748,2]
[355056709,1740883848109,-500.0,0.00025748,2]
[355056711,1740883848119,-901.55,0.00025748,90]
[355056713,1740883848128,-1451.57,0.00025748,2]
[355056715,1740883848138,-500.0,0.00025748,2]
[355056717,1740883848147,-1265.4,0.00025748,2]
[355056719,1740883848157,-500.0,0.00025748,2]
[355056720,1740883848166,-500.0,0.00025748,2]
[355056722,1740883848176,-500.0,0.00025748,2]
[355056724,1740883848186,-500.0,0.00025748,2]
[355056726,1740883848197,-500.0,0.00025748,2]
[355056728,1740883848206,-500.0,0.00025748,2]
[355056730,1740883848216,-500.0,0.00025748,2]
[355056732,1740883848225,-512.68825229,0.00025748,2]
[355056734,1740883848235,-860.45,0.00025748,2]
[355056736,1740883848245,-727.48,0.00025748,2]
[355056738,1740883848255,-1484.26,0.00025748,2]
[355056740,1740883848264,-1757.34,0.00025748,2]
[355056742,1740883848274,-500.0,0.00025748,2]
[355056744,1740883848283,-500.0,0.00025748,2]
[355056746,1740883848292,-500.0,0.00025748,2]
[355056748,1740883848302,-1806.18,0.00025748,2]
[355056749,1740883848311,-500.0,0.00025748,2]
[355056751,1740883848321,-500.0,0.00025748,2]
[355056753,1740883848331,-1785.78,0.00025748,2]
[355056755,1740883848341,-811.32,0.00025748,2]
[355056757,1740883848350,-500.0,0.00025748,2]
[355056759,1740883848360,-500.0,0.00025748,2]
[355056761,1740883848369,-500.0,0.00025748,2]
[355056763,1740883848379,-500.0,0.00025748,2]
[355056765,1740883848388,-500.0,0.00025748,2]
[355056767,1740883848398,-500.0,0.00025748,2]
[355056769,1740883848408,-500.0,0.00025748,2]
[355056771,1740883848417,-603.75,0.00025748,2]
[355056772,1740883848427,-2321.24,0.00025748,2]
[355056774,1740883848436,-500.0,0.00025748,2]
[355056776,1740883848446,-500.0,0.00025748,2]
[355056778,1740883848455,-402.04634225,0.00025748,2]
[355056780,1740883848465,-500.0,0.00025748,2]
[355056782,1740883848474,-564.84,0.00025748,2]
[355056784,1740883848484,-586.92,0.00025748,2]
[355056786,1740883848494,-500.0,0.00025748,2]
[355056788,1740883848506,-2529.0,0.00025748,2]
[355056790,1740883848515,-500.0,0.00025748,2]
[355056792,1740883848524,-638.41,0.00025748,2]
[355056794,1740883848533,-618.39,0.00025748,2]
[355056796,1740883848543,-500.0,0.00025748,2]
[355056798,1740883848553,-2793.3,0.00025748,2]
[355056800,1740883848562,-1948.43,0.00025748,2]
[355056802,1740883848573,-500.0,0.00025748,2]
[355056804,1740883848582,-500.0,0.00025748,2]
[355056806,1740883848592,-1291.15,0.00025748,2]
[355056807,1740883848602,-619.1,0.00025748,2]
[355056809,1740883848612,-500.0,0.00025748,2]
[355056811,1740883848622,-1059.62,0.00025749,2]
[355056813,1740883848631,-585.64,0.00025749,2]
[355056815,1740883848641,-880.22,0.00025749,2]
[355056817,1740883848650,-1832.27,0.00025749,2]
[355056819,1740883848660,-951.87,0.00025749,2]
[355056821,1740883848671,-1000.0,0.00025749,2]
[355056823,1740883848680,-1611.21,0.00025749,2]
[355056825,1740883848690,-1601.86,0.00025749,2]
[355056827,1740883848700,-500.0,0.00025749,2]
[355056829,1740883848710,-500.0,0.00025749,2]
[355056831,1740883848719,-1785.75,0.00025749,2]
[355056833,1740883848729,-716.08,0.00025749,2]
[355056835,1740883848739,-500.0,0.00025751,2]
[355056837,1740883848749,-151.0,0.00025752,7]
[355056839,1740883848759,-780.0,0.00025753,2]
[355056841,1740883848770,-500.0,0.00025753,2]
[355056843,1740883848780,-500.0,0.00025753,2]
[355056845,1740883848790,-488.51646908,0.00025753,2]
[355056846,1740883848799,-500.0,0.00025753,2]
[355056848,1740883848810,-500.0,0.00025753,2]
[355056850,1740883848821,-500.0,0.00025753,2]
[355056852,1740883848830,-630.01338174,0.00025753,2]
[355056854,1740883848840,-500.0,0.00025753,2]
[355056856,1740883848850,-500.0,0.00025753,2]
[355056858,1740883848859,-500.0,0.00025753,2]
[355056860,1740883848869,-500.0,0.00025753,2]
[355056862,1740883848878,-500.0,0.00025753,2]
[355056864,1740883848887,-500.0,0.00025753,2]
[355056866,1740883848897,-500.0,0.00025753,2]
[355056867,1740883848907,-500.0,0.00025753,2]
[355056869,1740883848916,-500.0,0.00025753,2]
[355056870,1740883848926,-500.0,0.00025753,2]
[355056871,1740883848935,-536.45,0.00025753,2]
[355056872,1740883848945,-500.0,0.00025753,2]
[355056873,1740883848954,-500.0,0.00025753,2]
[355056874,1740883848964,-498.01760497,0.00025753,2]
[355056875,1740883848974,-500.0,0.00025753,2]
[355056876,1740883848983,-500.0,0.00025753,2]
[355056877,1740883848993,-500.0,0.00025753,2]
[355056878,1740883849003,-768.25,0.00025753,2]
[355056879,1740883849012,-626.43,0.00025753,2]
[355056880,1740883849022,-500.0,0.00025753,2]
[355056881,1740883849032,-500.0,0.00025753,2]
[355056882,1740883849042,-500.0,0.00025753,2]
[355056883,1740883849051,-500.0,0.00025753,2]
[355056884,1740883849061,-500.0,0.00025753,2]
[355056885,1740883849071,-500.0,0.00025753,2]
[355056893,1740883849253,-500.0,0.00025753,2]
[355056895,1740883849263,-500.0,0.00025753,2]
[355056897,1740883849273,-500.0,0.00025753,2]
[355056899,1740883849283,-500.0,0.00025753,2]
[355056901,1740883849296,-500.0,0.00025753,2]
[355056903,1740883849314,-500.0,0.00025753,2]
[355056905,1740883849323,-35.08500896,0.00025753,2]
[355056907,1740883849337,-515.82099314,0.00025753,2]
[355057716,1740884049017,250.0,0.00013,2]
[355057717,1740884050109,300.0,0.00015,2]
[355057737,1740885032073,-263.16290489,0.00021306,2]
[355057738,1740885032085,-150.564,0.00021351,2]
[355057739,1740885032096,-2035.981,0.00021406,2]
[355057740,1740885032106,-1280.335,0.00021406,2]
[355057741,1740885032116,-1623.0,0.00021406,2]
[355057742,1740885032127,-408.165,0.00021406,2]
[355057743,1740885032136,-635.994,0.00021406,2]
[355057744,1740885032147,-791.0,0.00021406,2]
[355057745,1740885032157,-452.67718692,0.00021406,2]
[355057746,1740885032230,-88.99181308,0.00021406,2]
[355057747,1740885032239,-909.0,0.00021406,2]
[355057748,1740885032249,-994.497183,0.00021406,2]
[355057749,1740885032336,-273.502817,0.00021406,2]
[355057750,1740885032345,-1436.396,0.00021406,2]
[355057751,1740885032355,-4163.541,0.00021406,2]
[355057752,1740885032365,-3997.268,0.00021406,2]
[355057753,1740885032375,-186.147,0.00021406,2]
[355057754,1740885032384,-1022.154,0.00021406,2]
[355057755,1740885032394,-942.93726664,0.00021406,2]
[355057756,1740885032403,-404.83,0.00021545,2]
[355057757,1740885032413,-1231.0,0.000229,2]
[355057758,1740885032424,-499.52178714,0.000229,3]
[355057759,1740885032434,-150.84,0.00023,2]
[355057760,1740885032443,-1056.0,0.00023074,2]
[355057761,1740885032453,-250.0,0.00023136,2]
[355057762,1740885032462,-9008.08,0.00023187,2]
[355057763,1740885032471,-150.0,0.00023214,7]
[355057764,1740885032481,-499.52178685,0.00023245,3]
[355057765,1740885032490,-173.13,0.00023318,2]
[355057766,1740885032500,-202.09,0.0002335,2]
[355057767,1740885032509,-340.46,0.00023351,2]
[355057768,1740885032519,-150.76,0.00023383,2]
[355057769,1740885032529,-579.15,0.00023401,2]
[355057770,1740885032538,-869.44,0.00023416,2]
[355057771,1740885032549,-150.0,0.00023486,2]
[355057772,1740885032559,-450.0,0.00023486,2]
[355057773,1740885032568,-150.0,0.00023486,2]
[355057774,1740885032577,-450.0,0.00023486,2]
[355057775,1740885032587,-3303.76,0.00023501,2]
[355057776,1740885032596,-499.52178685,0.0002359,3]
[355057777,1740885032606,-404.83,0.00023809,2]
[355057778,1740885032616,-176.75,0.00023836,2]
[355057779,1740885032626,-1000.0,0.00023902,2]
[355057780,1740885032637,-1056.44,0.00023902,2]
[355057781,1740885032647,-499.52178685,0.00023934,3]
[355057782,1740885032658,-152.87,0.00023938,2]
[355057783,1740885032671,-23900.0,0.00023944,2]
[355057784,1740885032683,-499.52178685,0.00024279,3]
[355057785,1740885032693,-2019.44,0.00024288,2]
[355057786,1740885032703,-150.0,0.00024406,2]
[355057787,1740885032713,-200.0,0.00024431,2]
[355057788,1740885032723,-228.9,0.00024431,2]
[355057789,1740885032733,-150.030211,0.00024498,2]
[355057790,1740885032743,-4958.5953,0.00024546,2]
[355057791,1740885032753,-293.038,0.00024557,2]
[355057792,1740885032762,-1035.4218,0.00024557,2]
[355057793,1740885032772,-499.52178685,0.00024624,3]
[355057794,1740885032782,-156.61895695,0.00024657,2]
[355057795,1740885032793,-500.0,0.00024657,2]
[355057796,1740885032803,-643.14423993,0.00024657,2]
[355057797,1740885032813,-500.0,0.00024657,2]
[355057798,1740885032823,-500.0,0.00024657,2]
[355057799,1740885032833,-500.0,0.00024657,2]
[355057800,1740885032844,-650.2,0.00024657,2]
[355057801,1740885032853,-500.0,0.00024657,2]
[355057802,1740885032864,-500.0,0.00024657,2]
[355057803,1740885032881,-500.0,0.00024657,2]
[355057804,1740885032900,-500.0,0.00024657,2]
[355057805,1740885032915,-500.0,0.00024657,2]
[355057806,1740885032933,-500.0,0.00024657,2]
[355057807,1740885032946,-639.92811731,0.00024657,2]
[355057808,1740885032961,-500.0,0.00024657,2]
[355057809,1740885032975,-500.0,0.00024657,2]
[355057810,1740885032989,-155.89740112,0.00024657,2]
[355057811,1740885033004,-500.0,0.00024657,2]
[355057812,1740885033021,-500.0,0.00024657,2]
[355057813,1740885033037,-500.0,0.00024657,2]
[355057814,1740885033053,-635.17,0.00024657,2]
[355057815,1740885033068,-608.2,0.00024657,2]
[355057816,1740885033082,-500.0,0.00024657,2]
[355057817,1740885033094,-500.0,0.00024657,2]
[355057818,1740885033110,-500.0,0.00024657,2]
[355057819,1740885033126,-500.0,0.00024657,2]
[355057820,1740885033141,-500.0,0.00024657,2]
[355057821,1740885033157,-500.0,0.00024657,2]
[355057822,1740885033174,-500.0,0.00024657,2]
[355057823,1740885033191,-500.0,0.00024657,2]
[355057824,1740885033207,-500.0,0.00024657,2]
[355057825,1740885033222,-1439.58,0.00024657,2]
[355057826,1740885033237,-500.0,0.00024657,2]
[355057827,1740885033252,-500.0,0.00024657,2]
[355057828,1740885033267,-500.0,0.00024657,2]
[355057829,1740885033281,-500.0,0.00024657,2]
[355057830,1740885033297,-500.0,0.00024657,2]
[355057831,1740885033312,-500.0,0.00024657,2]
[355057832,1740885033327,-500.0,0.00024657,2]
[355057833,1740885033344,-500.0,0.00024657,2]
[355057834,1740885033358,-500.0,0.00024657,2]
[355057835,1740885033372,-500.0,0.00024657,2]
[355057836,1740885033385,-500.0,0.00024657,2]
[355057837,1740885033397,-500.0,0.00024657,2]
[355057838,1740885033409,-535.16,0.00024657,2]
[355057839,1740885033423,-500.0,0.00024657,2]
[355057840,1740885033438,-1596.44,0.00024657,2]
[355057841,1740885033455,-500.0,0.00024657,2]
[355057842,1740885033468,-500.0,0.00024657,2]
[355057843,1740885033480,-500.0,0.00024657,2]
[355057844,1740885033493,-500.0,0.00024657,2]
[355057845,1740885033507,-804.58,0.00024657,2]
[355057846,1740885033521,-500.0,0.00024657,2]
[355057847,1740885033538,-500.0,0.00024657,2]
[355057848,1740885033551,-500.0,0.00024657,2]
[355057849,1740885033564,-500.0,0.00024657,2]
[355057850,1740885033576,-500.0,0.00024657,2]
[355057851,1740885033587,-1198.1,0.00024657,2]
[355057852,1740885033600,-500.0,0.00024657,2]
[355057853,1740885033612,-500.0,0.00024657,2]
[355057854,1740885033625,-500.0,0.00024657,2]
[355057855,1740885033639,-1055.56,0.00024657,2]
[355057856,1740885033653,-500.0,0.00024657,2]
[355057857,1740885033666,-500.0,0.00024657,2]
[355057858,1740885033679,-500.0,0.00024657,2]
[355057859,1740885033693,-500.0,0.00024657,2]
[355057860,1740885033706,-579.313,0.00024712,7]
[355057861,1740885033738,-258.97,0.00024712,30]
[355057862,1740885033753,-646.06453252,0.00024826,2]
[355057863,1740885033768,-1265.8183,0.00024831,2]
[355057864,1740885033784,-1442.7488,0.00024831,2]
[355057865,1740885033799,-500.0,0.0002493,2]
[355057866,1740885033813,-500.0,0.0002493,2]
[355057867,1740885033829,-500.0,0.0002493,2]
[355057868,1740885033844,-500.0,0.0002493,2]
[355057869,1740885033858,-500.0,0.0002493,2]
[355057870,1740885033873,-1209.64,0.0002493,2]
[355057871,1740885033889,-500.0,0.0002493,2]
[355057872,1740885033903,-1054.5,0.0002493,2]
[355057873,1740885033919,-500.0,0.0002493,2]
[355057874,1740885033935,-1207.84,0.0002493,2]
[355057875,1740885033948,-500.0,0.0002493,2]
[355057876,1740885033961,-500.0,0.0002493,2]
[355057877,1740885033976,-500.0,0.0002493,2]
[355057878,1740885033989,-456.633187,0.0002493,2]
[355057879,1740885034001,-500.0,0.0002493,2]
[355057880,1740885034016,-606.23,0.0002493,2]
[355057881,1740885034029,-545.26,0.0002493,2]
[355057882,1740885034044,-1356.240759,0.0002493,2]
[355057883,1740885034060,-500.0,0.0002493,2]
[355057884,1740885034073,-610.04,0.0002493,2]
[355057885,1740885034086,-500.0,0.0002493,2]
[355057886,1740885034101,-500.0,0.0002493,2]
[355057887,1740885034115,-500.0,0.0002493,2]
[355057888,1740885034128,-1874.22,0.0002493,2]
[355057889,1740885034141,-500.0,0.0002493,2]
[355057890,1740885034153,-1074.36,0.0002493,2]
[355057891,1740885034166,-500.0,0.0002493,2]
[355057892,1740885034179,-500.0,0.0002493,2]
[355057893,1740885034205,-1455.95,0.0002493,2]
[355057894,1740885034225,-676.1,0.0002493,2]
[355057895,1740885034241,-500.0,0.0002493,2]
[355057896,1740885034257,-500.0,0.0002493,2]
[355057897,1740885034272,-500.0,0.0002493,2]
[355057898,1740885034287,-500.0,0.0002493,2]
[355057899,1740885034301,-500.0,0.0002493,2]
[355057900,1740885034315,-2213.18,0.0002493,2]
[355057901,1740885034329,-500.0,0.0002493,2]
[355057902,1740885034343,-500.0,0.0002493,2]
[355057903,1740885034358,-500.0,0.0002493,2]
[355057904,1740885034372,-1532.17,0.0002493,2]
[355057905,1740885034387,-1667.62,0.0002493,2]
[355057906,1740885034401,-631.39,0.0002493,2]
[355057907,1740885034415,-500.0,0.0002493,2]
[355057908,1740885034430,-500.0,0.0002493,2]
[355057909,1740885034444,-500.0,0.0002493,2]
[355057910,1740885034458,-503.13,0.0002493,2]
[355057911,1740885034472,-577.48,0.0002493,2]
[355057912,1740885034485,-1651.49,0.0002493,2]
[355057913,1740885034498,-2014.11,0.0002493,2]
[355057914,1740885034511,-1530.55,0.0002493,2]
[355057915,1740885034524,-500.0,0.0002493,2]
[355057916,1740885034538,-500.0,0.0002493,2]
[355057917,1740885034550,-1995.79,0.0002493,2]
[355057918,1740885034563,-690.71,0.0002493,2]
[355057919,1740885034576,-248.97307671,0.0002493,2]
[355057920,1740885034589,-1982.33,0.0002493,2]
[355057921,1740885034602,-526.40451947,0.0002493,2]
[355057922,1740885034617,-500.0,0.0002493,2]
[355057923,1740885034632,-515.32,0.0002493,2]
[355057924,1740885034643,-500.0,0.0002493,2]
[355057925,1740885034653,-812.0,0.0002493,2]
[355057926,1740885034663,-1105.24,0.0002493,2]
[355057927,1740885034679,-500.0,0.0002493,2]
[355057928,1740885034690,-819.88,0.0002493,2]
[355057929,1740885034700,-1298.89,0.0002493,2]
[355057930,1740885034710,-500.0,0.0002493,2]
[355057931,1740885034977,-1505.77,0.0002493,2]
[355057932,1740885034990,-1750.73,0.0002493,2]
[355057933,1740885035000,-500.0,0.0002493,2]
[355057934,1740885035011,-713.79,0.0002493,2]
[355057935,1740885035021,-500.0,0.0002493,2]
[355057936,1740885035030,-500.0,0.0002493,2]
[355057937,1740885035040,-500.0,0.0002493,2]
[355057938,1740885035050,-562.7,0.0002493,2]
[355057939,1740885035059,-500.0,0.0002493,2]
[355057940,1740885035070,-515.91,0.0002493,2]
[355057941,1740885035079,-500.0,0.0002493,2]
[355057942,1740885035089,-758.3,0.0002493,2]
[355057943,1740885035100,-1000.0,0.00024931,2]
[355057944,1740885035114,-1000.0,0.00024931,2]
[355057945,1740885035125,-1000.0,0.00024931,2]
[355057946,1740885035135,-1000.0,0.00024931,2]
[355057947,1740885035145,-1000.0,0.00024931,2]